[Event "Schack-SM 2023: Junior-SM"]
[Site "Helsingborg Arena, Mellersta Stenbocksgatan 14, Helsingborg, Sweden"]
[Date "2023.07.07"]
[Round "7.5"]
[White "Wernberg, Hugo"]
[Black "Lindholm, Gustav"]
[Result "1-0"]
[TimeControl "90 minutes for 40 moves + 30 minutes for the rest of the game + 30 seconds per move from move one."]
[WhiteTitle "FM"]
[WhiteElo "2217"]
[BlackElo "2155"]

1. d4 {[%clk 01:30:55]} {[%emt 00:00:05]} d5 {[%clk 01:30:54]} {[%emt
00:00:07]} 2. c4 {[%clk 01:31:18]} {[%emt 00:00:07]} c6 {[%clk 01:31:20]}
{[%emt 00:00:04]} 3. Nf3 {[%clk 01:31:44]} {[%emt 00:00:04]} Nf6 {[%clk
01:31:44]} {[%emt 00:00:05]} 4. cxd5 {[%clk 01:32:09]} {[%emt 00:00:05]} cxd5
{[%clk 01:32:09]} {[%emt 00:00:05]} 5. Nc3 {[%clk 01:32:32]} {[%emt 00:00:08]}
Nc6 {[%clk 01:32:33]} {[%emt 00:00:06]} 6. Bf4 {[%clk 01:32:55]} {[%emt
00:00:07]} a6 {[%clk 01:32:57]} {[%emt 00:00:06]} 7. Rc1 {[%clk 01:33:18]}
{[%emt 00:00:07]} e6 {[%clk 01:27:08]} {[%emt 00:06:20]} 8. e3 {[%clk
01:22:58]} {[%emt 00:10:49]} Bd6 {[%clk 01:27:20]} {[%emt 00:00:18]} 9. Bg3
{[%clk 01:21:44]} {[%emt 00:01:44]} Bxg3 {[%clk 01:27:21]} {[%emt 00:00:29]} 10.
hxg3 {[%clk 01:22:02]} {[%emt 00:00:12]} Bd7 {[%clk 01:26:13]} {[%emt
00:01:38]} 11. Bd3 {[%clk 01:20:19]} {[%emt 00:02:13]} Rc8 {[%clk 01:24:22]}
{[%emt 00:02:21]} 12. a3 {[%clk 00:57:39]} {[%emt 00:23:11]} Na5 {[%clk
01:19:49]} {[%emt 00:05:01]} 13. Ne5 {[%clk 00:45:36]} {[%emt 00:12:33]} Nc4
{[%clk 01:10:59]} {[%emt 00:09:21]} 14. Qe2 {[%clk 00:40:22]} {[%emt 00:05:44]}
b5 {[%clk 01:03:31]} {[%emt 00:07:58]} 15. f4 {[%clk 00:35:25]} {[%emt
00:05:26]} Nd6 {[%clk 00:55:19]} {[%emt 00:08:42]} 16. Kf2 {[%clk 00:29:10]}
{[%emt 00:06:44]} Nfe4+ {[%clk 00:48:11]} {[%emt 00:07:39]} 17. Bxe4 {[%clk
00:27:42]} {[%emt 00:01:58]} dxe4 {[%clk 00:47:52]} {[%emt 00:00:49]} 18. Qg4
{[%clk 00:23:14]} {[%emt 00:04:57]} g6 {[%clk 00:34:59]} {[%emt 00:13:23]} 19.
Rh2 {[%clk 00:14:57]} {[%emt 00:08:47]} Nc4 {[%clk 00:22:38]} {[%emt 00:12:53]}
20. Rch1 {[%clk 00:10:59]} {[%emt 00:04:27]} Nxe5 {[%clk 00:22:44]} {[%emt
00:00:25]} 21. fxe5 {[%clk 00:10:59]} {[%emt 00:00:30]} h5 {[%clk 00:21:43]}
{[%emt 00:01:30]} 22. Qxe4 {[%clk 00:08:07]} {[%emt 00:03:22]} Bc6 {[%clk
00:21:16]} {[%emt 00:00:58]} 23. Qf4 {[%clk 00:06:33]} {[%emt 00:02:03]} a5
{[%clk 00:21:23]} {[%emt 00:00:23]} 24. Ne4 {[%clk 00:03:26]} {[%emt 00:03:37]}
Bxe4 {[%clk 00:21:45]} {[%emt 00:00:09]} 25. Qxe4 {[%clk 00:03:51]} {[%emt
00:00:05]} Qc7 {[%clk 00:21:58]} {[%emt 00:00:17]} 26. Re1 {[%clk 00:03:59]}
{[%emt 00:00:22]} Qc2+ {[%clk 00:16:10]} {[%emt 00:06:18]} 27. Qxc2 {[%clk
00:04:20]} {[%emt 00:00:08]} Rxc2+ {[%clk 00:16:36]} {[%emt 00:00:05]} 28. Re2
{[%clk 00:04:44]} {[%emt 00:00:06]} Rc1 {[%clk 00:16:52]} {[%emt 00:00:14]} 29.
Re1 {[%clk 00:04:14]} {[%emt 00:00:59]} Rc2+ {[%clk 00:16:54]} {[%emt
00:00:29]} 30. Re2 {[%clk 00:04:40]} {[%emt 00:00:05]} Rc1 {[%clk 00:17:18]}
{[%emt 00:00:06]} 31. g4 {[%clk 00:04:32]} {[%emt 00:00:37]} h4 {[%clk
00:17:41]} {[%emt 00:00:07]} 32. g5 {[%clk 00:03:27]} {[%emt 00:01:35]} Rh5
{[%clk 00:16:20]} {[%emt 00:01:51]} 33. Kf3 {[%clk 00:03:15]} {[%emt 00:00:42]}
Rxg5 {[%clk 00:16:31]} {[%emt 00:00:19]} 34. Rxh4 {[%clk 00:03:31]} {[%emt
00:00:14]} Rf5+ {[%clk 00:16:21]} {[%emt 00:00:40]} 35. Ke4 {[%clk 00:03:07]}
{[%emt 00:00:54]} Kd7 {[%clk 00:13:06]} {[%emt 00:03:46]} 36. Rf4 {[%clk
00:03:02]} {[%emt 00:00:34]} Kc6 {[%clk 00:08:45]} {[%emt 00:04:50]} 37. Rff2
{[%clk 00:01:37]} {[%emt 00:01:55]} Rf1 {[%clk 00:05:30]} {[%emt 00:03:46]} 38.
Rc2+ {[%clk 00:01:56]} {[%emt 00:00:11]} Kb6 {[%clk 00:05:26]} {[%emt
00:00:35]} 39. Rxf1 {[%clk 00:00:58]} {[%emt 00:01:27]} Rxf1 {[%clk 00:05:52]}
{[%emt 00:00:04]} 40. Kd3 {[%clk 00:00:53]} {[%emt 00:00:35]} Rd1+ {[%clk
00:02:23]} {[%emt 00:03:59]} 41. Rd2 {[%clk 00:25:53]} {[%emt 00:05:30]} Rc1
{[%clk 00:20:48]} {[%emt 00:12:04]} 42. Rf2 {[%clk 00:18:19]} {[%emt 00:08:04]}
Rc7 {[%clk 00:21:02]} {[%emt 00:00:17]} 43. Rc2 {[%clk 00:18:34]} {[%emt
00:00:15]} Rd7 {[%clk 00:20:29]} {[%emt 00:01:03]} 44. e4 {[%clk 00:16:14]}
{[%emt 00:02:50]} Rd8 {[%clk 00:20:32]} {[%emt 00:00:28]} 45. Rc1 {[%clk
00:16:06]} {[%emt 00:00:37]} Rd7 {[%clk 00:20:30]} {[%emt 00:00:32]} 46. Rc8
{[%clk 00:12:42]} {[%emt 00:03:53]} a4 {[%clk 00:19:15]} {[%emt 00:01:46]} 47.
Rb8+ {[%clk 00:07:58]} {[%emt 00:05:13]} Ka6 {[%clk 00:16:21]} {[%emt
00:03:24]} 48. Rc8 {[%clk 00:07:38]} {[%emt 00:00:50]} Kb6 {[%clk 00:16:46]}
{[%emt 00:00:06]} 49. Rc3 {[%clk 00:07:42]} {[%emt 00:00:27]} Rd8 {[%clk
00:17:03]} {[%emt 00:00:12]} 50. b3 {[%clk 00:06:10]} {[%emt 00:02:02]} axb3
{[%clk 00:17:16]} {[%emt 00:00:18]} 51. Rxb3 {[%clk 00:06:33]} {[%emt
00:00:06]} Kc6 {[%clk 00:17:08]} {[%emt 00:00:38]} 52. Kc3 {[%clk 00:06:10]}
{[%emt 00:00:53]} Ra8 {[%clk 00:16:31]} {[%emt 00:01:07]} 53. Kb2 {[%clk
00:06:02]} {[%emt 00:00:38]} Rd8 {[%clk 00:13:59]} {[%emt 00:03:02]} 54. Rc3+
{[%clk 00:05:28]} {[%emt 00:01:04]} Kb6 {[%clk 00:14:18]} {[%emt 00:00:11]} 55.
Rd3 {[%clk 00:05:53]} {[%emt 00:00:05]} Kc6 {[%clk 00:14:23]} {[%emt 00:00:25]}
56. Kb3 {[%clk 00:05:27]} {[%emt 00:00:55]} Ra8 {[%clk 00:10:50]} {[%emt
00:04:05]} 57. d5+ {[%clk 00:04:01]} {[%emt 00:01:55]} exd5 {[%clk 00:11:11]}
{[%emt 00:00:09]} 58. exd5+ {[%clk 00:04:24]} {[%emt 00:00:07]} Kc5 {[%clk
00:10:56]} {[%emt 00:00:44]} 59. d6 {[%clk 00:04:03]} {[%emt 00:00:50]} Rd8
{[%clk 00:11:10]} {[%emt 00:00:17]} 60. d7 {[%clk 00:03:31]} {[%emt 00:01:02]}
g5 {[%clk 00:11:26]} {[%emt 00:00:14]} 61. g4 {[%clk 00:02:49]} {[%emt
00:01:12]} Kc6 {[%clk 00:11:30]} {[%emt 00:00:26]} 62. Kb4 {[%clk 00:02:53]}
{[%emt 00:00:26]} Rxd7 {[%clk 00:11:52]} {[%emt 00:00:08]} 63. Rxd7 {[%clk
00:02:58]} {[%emt 00:00:25]} Kxd7 {[%clk 00:12:18]} {[%emt 00:00:04]} 64. Kxb5
{[%clk 00:03:21]} {[%emt 00:00:07]} Ke6 {[%clk 00:12:44]} {[%emt 00:00:04]} 65.
a4 {[%clk 00:03:41]} {[%emt 00:00:10]} Kxe5 {[%clk 00:13:07]} {[%emt 00:00:07]}
66. a5 {[%clk 00:04:03]} {[%emt 00:00:08]} f5 {[%clk 00:13:28]} {[%emt
00:00:09]} 67. a6 {[%clk 00:04:22]} {[%emt 00:00:10]} fxg4 {[%clk 00:13:49]}
{[%emt 00:00:10]} 68. a7 {[%clk 00:04:43]} {[%emt 00:00:10]} 1-0

[ePGN "0.1;DGT LiveChess/2.2.5"]

[Event "Schack-SM 2023: Veteran-SM 65+"]
[Site "Helsingborg Arena, Mellersta Stenbocksgatan 14, Helsingborg, Sweden"]
[Date "2023.07.07"]
[Round "7.1"]
[White "Carlsson, Ingvar"]
[Black "Soderberg, Per"]
[Result "1/2-1/2"]
[TimeControl "90 minutes for 40 moves + 30 minutes for the rest of games + 30 seconds per move from move one."]
[BlackTitle "CM"]
[WhiteElo "1998"]
[BlackElo "2111"]

1. e4 {[%clk 01:30:39]} {[%emt 00:00:19]} c5 {[%clk 01:30:54]} {[%emt
00:00:07]} 2. Nf3 {[%clk 01:30:58]} {[%emt 00:00:11]} d6 {[%clk 01:31:18]}
{[%emt 00:00:06]} 3. d4 {[%clk 01:31:16]} {[%emt 00:00:12]} cxd4 {[%clk
01:31:43]} {[%emt 00:00:06]} 4. Nxd4 {[%emt 00:00:16]} Nf6 {[%clk 01:31:53]}
{[%emt 00:00:10]} 5. Nc3 {[%clk 01:32:02]} {[%emt 00:00:07]} a6 {[%clk
01:32:21]} {[%emt 00:00:04]} 6. h3 {[%clk 01:32:12]} {[%emt 00:00:19]} e5
{[%clk 01:32:13]} {[%emt 00:00:37]} 7. Nde2 {[%clk 01:32:29]} {[%emt 00:00:12]}
h5 {[%clk 01:32:36]} {[%emt 00:00:08]} 8. Bg5 {[%clk 01:32:40]} {[%emt
00:00:19]} Be7 {[%clk 01:31:19]} {[%emt 00:01:47]} 9. Bxf6 {[%emt 00:02:41]}
Bxf6 {[%clk 01:31:29]} {[%emt 00:00:17]} 10. Nd5 {[%clk 01:30:50]} {[%emt
00:00:12]} Nd7 {[%clk 01:28:40]} {[%emt 00:03:19]} 11. Nec3 {[%clk 01:30:46]}
{[%emt 00:00:34]} g6 {[%clk 01:27:55]} {[%emt 00:01:15]} 12. Be2 {[%clk
01:25:16]} {[%emt 00:06:00]} Bg7 {[%clk 01:28:02]} {[%emt 00:00:23]} 13. O-O
{[%clk 01:25:24]} {[%emt 00:00:22]} O-O {[%clk 01:27:40]} {[%emt 00:00:51]} 14.
a4 {[%clk 01:21:15]} {[%emt 00:04:40]} b6 {[%clk 01:25:41]} {[%emt 00:02:30]}
15. Qd2 {[%clk 01:13:25]} {[%emt 00:08:20]} Bb7 {[%emt 00:22:22]} 1/2-1/2

[ePGN "0.1;DGT LiveChess/2.2.5"]

[Event "Schack-SM 2023: Veteran-SM 50+"]
[Site "Helsingborg Arena, Mellersta Stenbocksgatan 14, Helsingborg, Sweden"]
[Date "2023.07.07"]
[Round "7.1"]
[White "Eriksson, Bengt"]
[Black "Wahlund, Max"]
[Result "1-0"]
[TimeControl "90 minutes for 40 moves + 30 minutes for the rest of games + 30 seconds per move from move one."]
[BlackTitle "CM"]
[WhiteElo "2016"]
[BlackElo "2002"]

1. d4 {[%clk 01:28:59]} {[%emt 00:02:01]} c5 {[%clk 01:30:57]} {[%emt
00:00:03]} 2. d5 {[%clk 01:27:25]} {[%emt 00:02:04]} Nf6 {[%clk 01:31:25]}
{[%emt 00:00:03]} 3. Nc3 {[%clk 01:26:20]} {[%emt 00:01:34]} e5 {[%clk
01:31:49]} {[%emt 00:00:06]} 4. e4 {[%clk 01:25:02]} {[%emt 00:01:49]} d6
{[%clk 01:32:18]} {[%emt 00:00:01]} 5. a4 {[%clk 01:23:40]} {[%emt 00:01:52]}
Be7 {[%clk 01:32:30]} {[%emt 00:00:17]} 6. Nf3 {[%clk 01:16:36]} {[%emt
00:07:34]} Bg4 {[%clk 01:30:52]} {[%emt 00:02:08]} 7. h3 {[%clk 01:05:44]}
{[%emt 00:11:23]} Bxf3 {[%clk 01:30:21]} {[%emt 00:01:00]} 8. Qxf3 {[%clk
01:06:09]} {[%emt 00:00:05]} Nbd7 {[%clk 01:27:06]} {[%emt 00:03:45]} 9. Nd1
{[%clk 01:00:26]} {[%emt 00:06:13]} a6 {[%emt 00:11:06]} 10. Ne3 {[%emt
00:04:27]} g6 {[%emt 00:04:55]} 11. g3 {[%clk 00:40:06]} {[%emt 00:10:56]} b5
{[%clk 01:16:50]} {[%emt 00:01:42]} 12. c4 {[%clk 00:32:19]} {[%emt 00:08:18]}
b4 {[%clk 01:09:14]} {[%emt 00:08:05]} 13. b3 {[%clk 00:31:20]} {[%emt
00:01:30]} h5 {[%clk 01:04:53]} {[%emt 00:04:50]} 14. h4 {[%clk 00:30:14]}
{[%emt 00:01:36]} Bf8 {[%clk 01:02:37]} {[%emt 00:02:46]} 15. Bh3 {[%clk
00:18:17]} {[%emt 00:12:28]} Bh6 {[%clk 01:00:28]} {[%emt 00:02:38]} 16. O-O
{[%clk 00:09:56]} {[%emt 00:08:52]} Qe7 {[%clk 01:00:35]} {[%emt 00:00:22]} 17.
a5 {[%clk 00:06:51]} {[%emt 00:03:36]} O-O-O {[%clk 00:58:40]} {[%emt
00:02:25]} 18. Nc2 {[%clk 00:06:19]} {[%emt 00:01:01]} Bxc1 {[%clk 00:58:43]}
{[%emt 00:00:27]} 19. Rfxc1 {[%clk 00:06:47]} {[%emt 00:00:02]} Kb7 {[%clk
00:58:35]} {[%emt 00:00:38]} 20. Ne3 {[%clk 00:01:53]} {[%emt 00:05:24]} Rdf8
{[%clk 00:58:11]} {[%emt 00:00:54]} 21. Re1 {[%clk 00:01:42]} {[%emt 00:00:41]}
Ne8 {[%clk 00:58:39]} {[%emt 00:00:03]} 22. Rad1 {[%clk 00:01:02]} {[%emt
00:01:10]} Ng7 {[%clk 00:59:07]} {[%emt 00:00:02]} 23. Bxd7 {[%clk 00:00:39]}
{[%emt 00:00:52]} Qxd7 {[%clk 00:59:07]} {[%emt 00:00:30]} 24. Qf6 {[%clk
00:01:05]} {[%emt 00:00:04]} Ne8 {[%clk 00:59:25]} {[%emt 00:00:12]} 25. Qg5
{[%clk 00:01:13]} {[%emt 00:00:21]} Rfg8 {[%clk 00:58:28]} {[%emt 00:01:28]} 26.
Nc2 {[%clk 00:00:39]} {[%emt 00:01:05]} f6 {[%clk 00:58:40]} {[%emt 00:00:18]}
27. Qe3 {[%clk 00:00:42]} {[%emt 00:00:26]} Qc7 {[%clk 00:55:16]} {[%emt
00:03:54]} 28. Kg2 {[%clk 00:00:34]} {[%emt 00:00:39]} Qxa5 {[%clk 00:54:55]}
{[%emt 00:00:51]} 29. Ra1 {[%clk 00:01:03]} {[%emt 00:00:01]} Qd8 {[%clk
00:49:13]} {[%emt 00:06:12]} 30. Nxb4 {[%clk 00:01:00]} {[%emt 00:00:33]} cxb4
{[%clk 00:49:19]} {[%emt 00:00:24]} 31. Rxa6 {[%clk 00:01:25]} {[%emt
00:00:05]} Kxa6 {[%clk 00:41:09]} {[%emt 00:08:40]} 32. Ra1+ {[%clk 00:01:54]}
{[%emt 00:00:01]} Kb7 {[%clk 00:41:30]} {[%emt 00:00:09]} 33. Qa7+ {[%clk
00:02:15]} {[%emt 00:00:09]} Kc8 {[%clk 00:41:55]} {[%emt 00:00:05]} 34. Qa8+
{[%clk 00:01:01]} {[%emt 00:01:43]} Kd7 {[%clk 00:40:43]} {[%emt 00:01:42]} 35.
Ra7+ {[%clk 00:01:24]} {[%emt 00:00:08]} Qc7 {[%clk 00:38:38]} {[%emt
00:02:35]} 36. Qc6+ {[%clk 00:01:37]} {[%emt 00:00:16]} Kd8 {[%clk 00:38:38]}
{[%emt 00:00:30]} 37. Ra8+ {[%clk 00:02:06]} {[%emt 00:00:02]} Ke7 {[%clk
00:38:43]} {[%emt 00:00:25]} 38. Rxe8+ {[%clk 00:02:23]} {[%emt 00:00:12]} Rxe8
{[%clk 00:38:59]} {[%emt 00:00:14]} 39. Qxc7+ {[%clk 00:02:50]} {[%emt
00:00:03]} Kf8 {[%clk 00:39:21]} {[%emt 00:00:08]} 40. c5 {[%clk 00:01:18]}
{[%emt 00:02:02]} 1-0

[Event "Schack-SM 2023: Sverigemastarklassen"]
[Site "Helsingborg Arena, Mellersta Stenbocksgatan 14, Helsingborg, Sweden"]
[Date "2023.07.07"]
[Round "7.4"]
[White "Olsson, William"]
[Black "Hector, Jonny"]
[Result "1-0"]
[TimeControl "90 minutes for 40 moves + 30 minutes for the rest of the game + 30 seconds per move from move one."]
[WhiteTitle "FM"]
[BlackTitle "GM"]
[WhiteFideId "1741721"]
[BlackFideId "1700090"]
[WhiteElo "2383"]
[BlackElo "2481"]

1. c4 {[%clk 01:30:55]} {[%emt 00:00:05]} e5 {[%clk 01:30:49]} {[%emt
00:00:10]} 2. g3 {[%clk 01:31:19]} {[%emt 00:00:08]} Nf6 {[%clk 01:31:08]}
{[%emt 00:00:09]} 3. Bg2 {[%clk 01:31:44]} {[%emt 00:00:06]} c6 {[%clk
01:31:22]} {[%emt 00:00:15]} 4. Nf3 {[%clk 01:32:01]} {[%emt 00:00:13]} e4
{[%clk 01:31:15]} {[%emt 00:00:36]} 5. Nd4 {[%clk 01:32:24]} {[%emt 00:00:08]}
d5 {[%clk 01:31:28]} {[%emt 00:00:15]} 6. cxd5 {[%clk 01:32:47]} {[%emt
00:00:07]} Qxd5 {[%clk 01:31:41]} {[%emt 00:00:16]} 7. Nc2 {[%clk 01:33:07]}
{[%emt 00:00:11]} Qh5 {[%clk 01:31:46]} {[%emt 00:00:25]} 8. Ne3 {[%clk
01:28:54]} {[%emt 00:04:44]} Bh3 {[%clk 01:29:36]} {[%emt 00:02:39]} 9. Nc3
{[%clk 01:28:12]} {[%emt 00:01:14]} Bc5 {[%clk 01:23:21]} {[%emt 00:06:44]} 10.
Nxe4 {[%clk 01:17:49]} {[%emt 00:10:54]} Bxe3 {[%clk 01:17:43]} {[%emt
00:06:06]} 11. Nxf6+ {[%clk 01:17:29]} {[%emt 00:00:50]} gxf6 {[%clk 01:18:09]}
{[%emt 00:00:04]} 12. Bxh3 {[%clk 01:17:52]} {[%emt 00:00:07]} Bxf2+ {[%clk
01:16:52]} {[%emt 00:01:47]} 13. Kxf2 {[%clk 01:18:16]} {[%emt 00:00:07]} Qxh3
{[%clk 01:17:08]} {[%emt 00:00:13]} 14. Qb3 {[%clk 01:07:32]} {[%emt 00:11:16]}
Nd7 {[%clk 01:14:15]} {[%emt 00:03:22]} 15. d4 {[%clk 00:51:25]} {[%emt
00:16:37]} O-O {[%clk 01:03:28]} {[%emt 00:11:16]} 16. Qxb7 {[%clk 00:42:55]}
{[%emt 00:09:02]} Rfe8 {[%clk 00:39:57]} {[%emt 00:24:00]} 17. Qxc6 {[%clk
00:40:23]} {[%emt 00:03:02]} Rac8 {[%clk 00:39:37]} {[%emt 00:00:51]} 18. Qf3
{[%clk 00:40:47]} {[%emt 00:00:07]} Rc2 {[%clk 00:39:26]} {[%emt 00:00:40]} 19.
Be3 {[%clk 00:40:43]} {[%emt 00:00:35]} f5 {[%clk 00:37:29]} {[%emt 00:02:26]}
20. Qf4 {[%clk 00:26:54]} {[%emt 00:14:20]} h6 {[%clk 00:36:55]} {[%emt
00:01:02]} 21. Rac1 {[%clk 00:25:16]} {[%emt 00:02:09]} Rxc1 {[%clk 00:27:07]}
{[%emt 00:10:18]} 22. Bxc1 {[%clk 00:23:17]} {[%emt 00:02:30]} Nf6 {[%clk
00:19:32]} {[%emt 00:08:03]} 23. Qf3 {[%clk 00:23:43]} {[%emt 00:00:05]} Rc8
{[%clk 00:19:14]} {[%emt 00:00:48]} 24. Bf4 {[%clk 00:22:24]} {[%emt 00:01:48]}
Rc2 {[%clk 00:19:06]} {[%emt 00:00:39]} 25. Rc1 {[%clk 00:17:40]} {[%emt
00:05:13]} Qxh2+ {[%clk 00:17:25]} {[%emt 00:02:11]} 26. Kf1 {[%clk 00:18:02]}
{[%emt 00:00:09]} Rxb2 {[%clk 00:10:36]} {[%emt 00:07:19]} 27. Be5 {[%clk
00:17:22]} {[%emt 00:01:11]} Ne8 {[%clk 00:09:04]} {[%emt 00:02:01]} 28. g4
{[%clk 00:13:39]} {[%emt 00:04:13]} Qh4 {[%clk 00:08:31]} {[%emt 00:01:02]} 29.
gxf5 {[%clk 00:13:40]} {[%emt 00:00:30]} Qg5 {[%clk 00:05:59]} {[%emt
00:03:01]} 30. Bf4 {[%clk 00:10:36]} {[%emt 00:03:35]} Qxf5 {[%clk 00:05:52]}
{[%emt 00:00:37]} 31. Rc5 {[%clk 00:10:55]} {[%emt 00:00:11]} Qg6 {[%clk
00:04:55]} {[%emt 00:01:26]} 32. Kf2 {[%clk 00:09:30]} {[%emt 00:01:56]} Nf6
{[%clk 00:04:39]} {[%emt 00:00:45]} 33. Rc8+ {[%clk 00:09:11]} {[%emt
00:00:50]} Kh7 {[%clk 00:05:06]} {[%emt 00:00:02]} 34. Bc1 {[%clk 00:07:27]}
{[%emt 00:02:15]} Rxa2 {[%clk 00:04:16]} {[%emt 00:01:20]} 35. d5 {[%clk
00:05:06]} {[%emt 00:02:51]} Ne4+ {[%clk 00:03:42]} {[%emt 00:01:04]} 36. Ke3
{[%clk 00:04:49]} {[%emt 00:00:48]} Ng3 {[%clk 00:02:31]} {[%emt 00:01:40]} 37.
Rc6 {[%clk 00:02:30]} {[%emt 00:02:50]} Rxe2+ {[%clk 00:02:48]} {[%emt
00:00:13]} 38. Kd4 {[%clk 00:02:43]} {[%emt 00:00:17]} Nf5+ {[%clk 00:01:55]}
{[%emt 00:01:24]} 39. Kd3 {[%clk 00:02:28]} {[%emt 00:00:46]} Ng3+ {[%clk
00:02:20]} {[%emt 00:00:04]} 40. Rxg6 {[%clk 00:02:53]} {[%emt 00:00:05]} 1-0

[Event "Schack-SM 2023: Mastarklassen-elit"]
[Site "Helsingborg Arena, Mellersta Stenbocksgatan 14, Helsingborg, Sweden"]
[Date "2023.07.07"]
[Round "7.3"]
[White "Soderstrom, Adrian"]
[Black "Wiedenkeller, Michael"]
[Result "1/2-1/2"]
[TimeControl "90 minutes for 40 moves + 30 minutes for the rest of games + 30 seconds per move from move one."]
[WhiteTitle "FM"]
[BlackTitle "IM"]
[WhiteElo "2311"]
[BlackElo "2445"]

1. e4 {[%clk 01:30:43]} {[%emt 00:00:17]} e5 {[%clk 01:30:27]} {[%emt
00:00:33]} 2. Nf3 {[%clk 01:31:00]} {[%emt 00:00:13]} Nc6 {[%clk 01:30:49]}
{[%emt 00:00:08]} 3. Bb5 {[%clk 01:30:50]} {[%emt 00:00:41]} Nf6 {[%clk
01:28:59]} {[%emt 00:02:18]} 4. O-O {[%clk 01:28:18]} {[%emt 00:03:02]} Nxe4
{[%clk 01:28:58]} {[%emt 00:00:32]} 5. d4 {[%clk 01:28:17]} {[%emt 00:00:31]}
Nd6 {[%clk 01:28:59]} {[%emt 00:00:28]} 6. dxe5 {[%clk 01:28:16]} {[%emt
00:00:32]} Nxb5 {[%clk 01:27:51]} {[%emt 00:01:37]} 7. a4 {[%clk 01:28:43]}
{[%emt 00:00:04]} Nbd4 {[%clk 01:25:01]} {[%emt 00:03:18]} 8. Nxd4 {[%clk
01:29:05]} {[%emt 00:00:10]} d5 {[%clk 01:21:31]} {[%emt 00:04:00]} 9. exd6
{[%clk 01:28:57]} {[%emt 00:00:39]} Nxd4 {[%clk 01:20:20]} {[%emt 00:01:41]} 10.
Qxd4 {[%clk 01:29:21]} {[%emt 00:00:06]} Qxd6 {[%clk 01:20:27]} {[%emt
00:00:23]} 11. Qe4+ {[%clk 01:29:45]} {[%emt 00:00:05]} Qe6 {[%clk 01:20:11]}
{[%emt 00:00:46]} 12. Qd4 {[%clk 01:30:12]} {[%emt 00:00:03]} Qd6 {[%clk
01:19:27]} {[%emt 00:01:13]} 13. Qe4+ {[%clk 01:30:36]} {[%emt 00:00:07]} Qe6
{[%clk 01:19:01]} {[%emt 00:00:55]} 1/2-1/2

[ePGN "0.1;DGT LiveChess/2.2.5"]